bitfinex-derivatives/quotes_SOLF0:USTF0_20240910
["timestamp","ask_amount","ask_price","bid_price","bid_amount"]
[1725935287491,25.9648,132.94,132.91,3.3855]
[1725935291488,3.3851,132.93,132.91,3.3855]
[1725935292790,25.9648,132.94,132.91,3.3855]
[1725935293093,22.58,132.95,132.92,3.3852]
[1725935293788,25.9647,132.95,132.92,3.3852]
[1725935295196,3.3848,132.94,132.91,3.3854]
[1725935295594,3.3848,132.94,132.9,9.24]
[1725935296195,3.3848,132.94,132.91,3.3855]
[1725935296396,3.3848,132.94,132.9,9.24]
[1725935297102,3.3848,132.94,132.92,3.3853]
[1725935297700,3.3852,132.93,132.89,9.24]
[1725935298002,22.58,132.94,132.89,9.24]
[1725935298197,22.58,132.94,132.9,9.24]
[1725935298798,25.9646,132.95,132.91,3.3854]
[1725935299305,3.3848,132.94,132.91,3.3854]
[1725935299693,3.3851,132.93,132.9,3.3856]
[1725935304713,3.3853,132.92,132.9,3.3856]
[1725935306608,3.3851,132.93,132.9,3.3856]
[1725935307710,25.9648,132.94,132.91,3.3855]
[1725935308615,25.9648,132.94,132.9,3.73090274]
[1725935309402,25.9648,132.94,132.91,3.3853]
[1725935311507,3.3851,132.93,132.9,3.3857]
[1725935312006,3.3853,132.93,132.89,7.22564845]
[1725935312210,3.3853,132.93,132.89,3.3859]
[1725935312813,3.3853,132.93,132.89,7.12442419]
[1725935313211,3.3853,132.93,132.9,3.3857]
[1725935323920,25.9648,132.94,132.91,3.3855]
[1725935329222,3.3851,132.93,132.9,3.3856]
[1725935330627,3.3853,132.92,132.89,7.12452419]
[1725935332322,3.3853,132.92,132.89,3.386]
[1725935339438,3.3851,132.93,132.9,3.3857]
[1725935340431,25.9649,132.94,132.91,3.3854]
[1725935350648,4.0473,132.95,132.91,3.3854]
[1725935350649,22.58,132.95,132.91,9.24]
[1725935350840,48.55305765,133.08,132.91,9.24]
[1725935350841,22.58,132.96,132.91,9.24]
[1725935352045,25.9644,132.96,132.93,3.3849]
[1725935352247,40.59117328,132.96,132.93,3.3849]
[1725935352447,3.3841,132.97,132.94,3.3846]
[1725935352841,18.01168082,132.97,132.94,3.3846]
[1725935353040,3.3841,132.97,132.94,3.3846]
[1725935353550,1.2805,133.0,132.96,9.24]
[1725935353750,1.2805,133.0,132.96,13.03524418]
[1725935353945,22.58,133.01,132.96,13.03524418]
[1725935354142,41.90808947,133.01,132.96,13.03524418]
[1725935354349,41.90808947,133.01,132.98,3.3836]
[1725935354654,22.58,133.01,132.96,13.03524418]
[1725935354858,22.58,133.01,132.97,3.3838]
[1725935355049,37.21185294,133.01,132.97,3.3838]
[1725935355247,22.58,133.01,132.97,3.3838]
[1725935356157,3.3833,133.0,132.97,3.3838]
[1725935358653,25.9631,133.01,132.98,3.3837]
[1725935358858,1.3821,133.06,132.98,9.24]
[1725935359057,22.58,133.03,132.98,9.24]
[1725935359963,3.3829,133.02,132.99,3.3835]
[1725935360155,3.3829,133.02,132.98,9.24]
[1725935360766,3.383,133.01,132.98,12.6237]
[1725935361064,25.963,133.01,132.97,9.24]
[1725935361262,3.3836,132.99,132.96,3.79524418]
[1725935361459,3.3836,132.99,132.95,3.3843]
[1725935361460,3.3836,132.99,132.94,10.652]
[1725935361658,25.9636,132.99,132.94,10.652]
[1725935361861,25.9636,132.99,132.95,7.07770399]
[1725935362666,25.9636,132.99,132.96,3.3843]
[1725935363053,3.3838,132.98,132.94,10.652]
[1725935363454,3.3838,132.98,132.94,14.42428503]
[1725935363858,3.3838,132.98,132.95,3.3844]
[1725935368263,3.3834,133.0,132.94,13.01228503]
[1725935368464,25.9634,133.0,132.94,13.01228503]
[1725935369166,25.9634,133.0,132.96,3.384]
[1725935369568,3.3835,132.99,132.96,3.384]
[1725935369763,3.3835,132.99,132.95,3.3843]
[1725935371760,3.3838,132.98,132.95,3.3843]
[1725935373273,3.3836,132.99,132.95,3.3843]
[1725935373463,3.3836,132.99,132.96,12.6242]
[1725935373863,4.6966,133.01,132.98,12.6236]
[1725935374068,3.383,133.01,132.98,12.6236]
[1725935374366,28.6662,133.02,132.98,9.24]
[1725935374769,28.6662,133.02,132.98,12.6235]
[1725935375166,3.383,133.01,132.98,12.6235]
[1725935377277,3.3833,133.0,132.98,9.24]
[1725935377865,3.3833,133.0,132.96,12.6241]
[1725935378071,3.3833,133.0,132.96,9.24]
[1725935379076,3.3833,133.0,132.97,3.384]
[1725935390481,22.58,133.01,132.96,9.24]
[1725935391083,3.3832,133.0,132.97,3.3839]
[1725935391381,22.58,133.01,132.96,9.24]
[1725935392081,3.3837,132.99,132.96,12.6242]
[1725935394687,3.3834,133.0,132.96,12.6242]
[1725935395391,3.3834,133.0,132.97,3.3839]
[1725935397284,3.3835,132.99,132.96,12.6242]
[1725935398784,3.3838,132.98,132.95,12.6244]
[1725935400292,3.3838,132.98,132.95,3.3844]
[1725935400587,31.82,132.99,132.93,10.561]
[1725935400787,31.82,132.99,132.94,9.24]
[1725935401191,22.58,132.99,132.94,9.24]
[1725935401394,22.58,133.01,132.98,9.24]
[1725935401789,25.9631,133.01,132.98,9.24]
[1725935402693,25.9631,133.01,132.98,12.6237]
[1725935402884,25.9631,133.01,132.97,9.24]
[1725935403089,3.3833,133.0,132.97,12.6239]
[1725935403593,3.3836,132.99,132.96,7.11407814]
[1725935403787,3.3836,132.99,132.96,9.24]
[1725935404093,3.3836,132.99,132.95,9.24]
[1725935404281,3.3836,132.99,132.95,12.6244]
[1725935405894,31.82,133.01,132.95,12.6244]
[1725935406691,3.3837,132.99,132.95,12.6244]
[1725935407497,31.82,133.01,132.95,9.24]
[1725935407498,3.3838,132.98,132.95,9.24]
[1725935407997,3.3838,132.98,132.94,3.3847]
[1725935408201,3.3838,132.98,132.93,1.321]
[1725935408202,22.58,132.98,132.93,12.6249]
[1725935408704,22.58,132.98,132.94,12.6246]
[1725935409092,22.58,132.98,132.94,9.24]
[1725935409393,22.58,133.0,132.95,3.3844]
[1725935410292,22.58,133.0,132.96,3.3842]
[1725935410685,22.58,133.01,132.96,9.24]
[1725935411200,41.89361059,133.01,132.98,9.24]
[1725935411392,37.20051878,133.01,132.99,9.24]
[1725935411588,22.58,133.05,132.99,12.6233]
[1725935411788,3.3825,133.03,132.99,9.24]
[1725935411988,41.89689527,133.04,133.02,9.24]
[1725935412195,37.20311353,133.04,133.02,9.24]
[1725935412499,22.58,133.04,133.02,9.24]
[1725935412891,25.9622,133.05,133.02,9.24]
[1725935413693,22.58,133.05,132.95,4.179]
[1725935413895,22.58,133.05,133.01,9.24]
[1725935414497,22.58,133.05,133.01,12.6228]
[1725935415197,22.58,133.05,132.95,4.179]
[1725935415198,22.58,133.05,133.02,9.24]
[1725935415700,22.58,133.05,133.03,3.3825]
[1725935416100,22.58,133.07,133.04,9.24]
[1725935416292,11.8977,133.13,133.06,12.6217]
[1725935416498,11.8977,133.13,132.95,4.179]
[1725935416499,1.13941077,133.12,133.05,3.81392362]
[1725935416699,27.50211955,133.12,133.06,9.24]
[1725935416900,19.32826324,133.11,133.06,9.24]
[1725935417104,3.3811,133.09,133.06,9.24]
[1725935418905,3.3813,133.08,133.06,9.24]
[1725935420405,18.01287258,133.09,133.06,9.24]
[1725935420802,3.381,133.09,133.06,9.24]
[1725935421001,18.01287258,133.09,133.06,9.24]
[1725935421507,18.0127927,133.09,133.06,9.24]
[1725935422008,3.381,133.09,133.06,9.24]
[1725935422198,18.0127927,133.09,133.06,9.24]
[1725935422399,25.07341077,133.12,133.07,9.24]
[1725935422600,25.07341077,133.12,133.08,9.24]
[1725935422795,59.03767022,133.12,133.08,9.24]
[1725935422998,59.92485945,133.11,133.08,9.24]
[1725935423204,25.9606,133.11,133.08,9.24]
[1725935424094,25.9606,133.11,133.08,12.6212]
[1725935425106,3.3806,133.11,133.08,12.6212]
[1725935425410,2.49341077,133.12,133.08,12.6212]
[1725935425411,1.13941077,133.12,133.08,9.24]
[1725935425797,4.51981077,133.12,133.08,12.621]
[1725935426410,1.13941077,133.12,133.09,3.3809]
[1725935426700,1.13941077,133.12,133.1,9.24]
[1725935427098,40.59606452,133.13,133.1,9.24]
[1725935427304,25.9601,133.13,133.1,9.24]
[1725935427506,3.3801,133.13,133.1,9.24]
[1725935428612,45.29673722,133.13,133.09,3.3809]
[1725935428803,25.9601,133.13,133.1,9.24]
[1725935429207,59.93354456,133.13,133.1,9.24]
[1725935429408,25.9601,133.13,133.1,9.24]
[1725935429810,59.94364344,133.13,133.1,9.24]
[1725935430002,3.3801,133.13,133.1,9.24]
[1725935431013,37.22147111,133.13,133.09,9.24]
[1725935431218,37.22147111,133.13,133.08,9.24]
[1725935431415,3.3805,133.11,133.08,9.24]
[1725935431910,46.46147111,133.13,133.07,12.6213]
[1725935432104,25.9606,133.11,133.07,12.6213]
[1725935432302,22.58,133.11,133.08,9.24]
[1725935432701,25.9605,133.11,133.08,12.6211]
[1725935433113,3.3805,133.11,133.08,12.6211]
[1725935435815,3.3805,133.11,133.09,9.24]
[1725935437708,25.9603,133.12,133.09,9.24]
[1725935438610,3.3803,133.12,133.09,9.24]
[1725935438808,3.3805,133.11,133.09,9.24]
[1725935441419,3.3807,133.1,133.08,9.24]
[1725935441616,31.82,133.14,133.08,9.24]
[1725935441814,1.14124129,133.13,133.08,9.24]
[1725935442121,1.14124129,133.13,133.06,13.04824812]
[1725935442122,22.58,133.12,133.06,13.04824812]
[1725935442413,22.58,133.12,133.06,9.24]
[1725935442414,26.5822,133.12,133.06,9.24]
[1725935442807,26.5822,133.12,133.06,13.00954299]
[1725935443220,3.3811,133.09,133.06,13.00954299]
[1725935443421,3.3811,133.09,133.06,9.24]
[1725935445016,22.58,133.17,133.08,9.24]
[1725935445314,1.14152013,133.16,133.13,9.24]
[1725935445517,22.58,133.15,133.14,9.24]
[1725935446615,13.2278,133.2,133.14,9.24]
[1725935446616,3.3792,133.16,133.14,9.24]
[1725935450620,22.58,133.17,133.08,3.84713663]
[1725935450824,22.58,133.17,133.06,3.9873]
[1725935450825,1.14113363,133.16,133.06,3.9873]
[1725935451124,3.3799,133.14,133.11,9.24]
[1725935451420,31.82,133.17,133.11,9.24]
[1725935451624,1.14111304,133.16,133.11,9.24]
[1725935452820,3.3798,133.14,133.11,9.24]
[1725935457925,3.3801,133.13,133.06,7.67596694]
[1725935458224,3.3801,133.13,133.11,9.24]
[1725935462825,3.3797,133.14,133.12,9.24]
[1725935465629,22.58,133.19,133.13,9.24]
[1725935465833,22.58,133.16,133.06,7.67596694]
[1725935466133,22.58,133.19,133.16,9.24]
[1725935466334,1.1411992,133.18,133.16,9.24]
[1725935466537,22.58,133.17,133.16,9.24]
[1725935466734,23.72118066,133.17,133.16,9.24]
[1725935466944,3.3793,133.16,133.14,9.24]
[1725935467129,22.58,133.17,133.14,9.24]
[1725935467328,1.1411992,133.18,133.15,9.24]
[1725935467635,23.7211611,133.17,133.15,9.24]
[1725935467836,22.58,133.17,133.15,9.24]
[1725935468029,3.3787,133.18,133.15,9.24]
[1725935468235,1.14118603,133.17,133.15,12.6194]
[1725935468431,25.9585,133.19,133.15,12.6194]
[1725935468737,27.09988765,133.18,133.15,9.24]
[1725935469036,1.14118765,133.17,133.15,9.24]
[1725935469231,3.3785,133.19,133.15,12.6194]
[1725935469435,1.14119277,133.18,133.15,12.6194]
[1725935470934,1.14118861,133.17,133.13,3.69600123]
[1725935471144,22.58,133.19,133.17,9.24]
[1725935471436,3.9878,133.2,133.17,9.24]
[1725935472037,26.5678,133.2,133.17,9.24]
[1725935472231,29.946,133.2,133.17,9.24]
[1725935472629,3.3784,133.19,133.17,9.24]
[1725935473729,26.5678,133.2,133.17,9.24]
[1725935474339,7.3661,133.2,133.17,9.24]
[1725935476727,29.9461,133.2,133.17,9.24]
[1725935477632,28.5628,133.2,133.17,9.24]
[1725935478041,5.9828,133.2,133.17,9.24]
[1725935478242,3.3783,133.2,133.17,9.24]
[1725935478433,3.3783,133.2,133.18,9.24]
[1725935479332,3.378,133.21,133.18,9.24]
[1725935479532,1.3897,133.23,133.19,9.24]
[1725935479736,22.58,133.3,133.22,9.24]
[1725935479933,3.3776,133.23,133.2,9.24]
[1725935480937,14.66409027,133.25,133.22,9.24]
[1725935481131,22.58,133.28,133.24,9.24]
[1725935481338,1.14199913,133.27,133.24,9.24]
[1725935481537,56.62312908,133.28,133.24,9.24]
[1725935481727,22.58,133.29,133.24,9.24]
[1725935481934,27.09841528,133.28,133.24,9.24]
[1725935482236,3.3763,133.28,133.24,9.24]
[1725935482841,37.25231756,133.28,133.24,9.24]
[1725935483040,22.58,133.28,133.24,9.24]
[1725935483543,3.3764,133.27,133.24,9.24]
[1725935484735,3.3764,133.27,133.23,9.24]
[1725935485949,22.58,133.31,133.25,9.24]
[1725935486153,22.58,133.31,133.3,9.24]
[1725935486334,1.14179191,133.31,133.3,9.24]
[1725935486539,1.14179204,133.32,133.3,9.24]
[1725935486940,1.14179204,133.32,133.27,3.3762]
[1725935487150,1.14179204,133.32,133.29,9.24]
[1725935488141,6.41052936,133.38,133.31,9.24]
[1725935488449,1.14155648,133.37,133.36,9.24]
[1725935488748,23.72155648,133.37,133.36,9.24]
[1725935489147,27.09545648,133.37,133.36,9.24]
[1725935489654,3.3746,133.34,133.33,9.24]
[1725935489946,22.58,133.36,133.3,9.24]
[1725935490147,1.14152152,133.35,133.3,9.24]
[1725935490453,3.3747,133.34,133.32,9.24]
[1725935491044,3.3749,133.33,133.32,9.24]
[1725935492951,3.3749,133.33,133.3,9.24]
[1725935497156,3.3749,133.33,133.29,3.3759]
[1725935497356,3.3751,133.32,133.29,9.24]
[1725935498046,3.3751,133.32,133.27,3.3763]
[1725935498250,26.32296435,133.32,133.26,4.0492]
[1725935498457,22.58,133.32,133.27,9.24]
[1725935498758,22.58,133.32,133.28,9.24]
[1725935498759,3.3754,133.31,133.28,9.24]
[1725935499355,3.3752,133.32,133.28,9.24]
[1725935499762,22.58,133.33,133.28,9.24]
[1725935500152,3.3754,133.31,133.28,9.24]
[1725935501155,3.3752,133.32,133.28,12.6161]
[1725935501468,1.3028,133.37,133.26,4.0492]
[1725935501469,22.58,133.35,133.3,9.24]
[1725935503067,3.3749,133.33,133.3,9.24]
[1725935504356,9.24,133.37,133.26,4.0492]
[1725935504554,22.52,133.34,133.29,9.24]
[1725935504961,25.8948,133.34,133.29,12.6157]
[1725935507762,9.24,133.35,133.29,12.6157]
[1725935507965,22.52,133.34,133.3,3.3756]
[1725935509270,22.52,133.33,133.3,3.3756]
[1725935510172,3.3747,133.34,133.3,3.3756]
[1725935514063,3.3747,133.34,133.31,3.3753]
[1725935514262,3.3744,133.35,133.31,3.3753]
[1725935514666,31.76,133.36,133.3,3.3755]
[1725935515473,22.52,133.36,133.31,3.3753]
[1725935515676,22.52,133.34,133.31,3.3753]
[1725935517072,25.8947,133.34,133.31,3.3753]
[1725935518371,25.8947,133.34,133.3,3.3755]
[1725935521673,22.52,133.34,133.31,3.3753]
[1725935522870,3.3742,133.36,133.32,3.3749]
[1725935523773,22.52,133.41,133.35,9.24]
[1725935523977,3.71417154,133.4,133.35,9.24]
[1725935524373,23.9064,133.41,133.35,9.24]
[1725935524773,27.61269299,133.41,133.35,9.24]
[1725935525073,30.98559299,133.41,133.36,3.374]
[1725935525274,30.98559299,133.41,133.35,9.24]
[1725935525275,22.52,133.4,133.35,9.24]
[1725935525685,22.52,133.4,133.36,3.3741]
[1725935526269,22.52,133.4,133.37,3.3738]
[1725935527082,22.52,133.4,133.38,3.3735]
[1725935527386,23.9064,133.41,133.35,9.24]
[1725935527577,23.9064,133.41,133.36,3.374]
[1725935527777,23.9064,133.41,133.35,9.24]
[1725935528683,27.2794,133.41,133.35,12.6142]
[1725935529077,3.3733,133.4,133.34,12.6145]
[1725935529382,22.52,133.38,133.33,9.24]
[1725935530085,22.52,133.38,133.32,9.24]
[1725935530589,3.374,133.37,133.32,9.24]
[1725935532078,3.374,133.37,133.32,12.6151]
[1725935533681,22.52,133.38,133.32,9.24]
[1725935533985,22.52,133.36,133.24,2.7062]
[1725935534184,3.3748,133.34,133.3,9.24]
[1725935534383,3.67647805,133.35,133.3,9.24]
[1725935534687,22.52,133.34,133.3,9.24]
[1725935536083,3.3751,133.33,133.3,9.24]
[1725935542387,3.3756,133.31,133.27,3.3763]
[1725935542689,3.3756,133.31,133.28,9.24]
[1725935542878,3.3756,133.31,133.28,12.616]
[1725935543587,22.52,133.41,133.3,9.24]
[1725935543793,22.52,133.36,133.31,9.24]
[1725935544489,23.8352,133.36,133.31,9.24]
[1725935544690,3.3744,133.35,133.31,12.6153]
[1725935544885,23.8352,133.36,133.31,9.24]
[1725935546089,27.2095,133.36,133.32,3.3749]
[1725935549198,3.3744,133.35,133.32,3.3749]
[1725935551199,3.3744,133.35,133.31,12.6153]
[1725935552094,3.3744,133.35,133.32,3.3751]
[1725935563409,23.8352,133.36,133.31,9.24]
[1725935564214,27.2094,133.36,133.33,3.3747]
[1725935565311,23.8352,133.36,133.3,9.24]
[1725935565713,3.3745,133.35,133.31,3.3752]
[1725935566113,3.3745,133.35,133.3,9.24]
[1725935566506,25.8942,133.36,133.33,3.3748]
[1725935566723,3.3742,133.36,133.33,3.3748]
[1725935567210,3.3744,133.35,133.32,3.375]
[1725935567814,3.3742,133.36,133.33,3.3747]
[1725935570116,22.52,133.37,133.33,3.3747]
[1725935570117,25.894,133.37,133.33,3.3747]
[1725935571117,3.3741,133.36,133.33,3.3747]
[1725935578732,9.24,133.36,133.31,3.3753]
[1725935579026,35.58398548,133.35,133.29,9.24]
[1725935579222,3.375,133.33,133.29,12.6158]
[1725935579421,22.52,133.33,133.29,12.6158]
[1725935580725,3.3752,133.32,133.29,12.6158]
[1725935580928,3.3752,133.32,133.28,3.67130262]
[1725935580929,22.52,133.33,133.28,7.04730262]
[1725935581233,22.52,133.33,133.28,16.28730262]
[1725935581427,3.3753,133.32,133.28,12.91130262]
[1725935583221,3.3753,133.32,133.29,3.3759]
[1725935586130,31.76,133.33,133.28,3.67130262]
[1725935586333,31.76,133.33,133.27,9.24]
[1725935586334,51.14138045,133.33,133.27,9.24]
[1725935586834,51.14138045,133.33,133.28,3.83986192]
[1725935586835,31.76,133.33,133.28,3.83986192]
[1725935587833,3.3755,133.31,133.28,3.83986192]
[1725935588031,31.76,133.33,133.27,12.6163]
[1725935588032,31.76,133.33,133.27,9.24]
[1725935588533,3.3758,133.3,133.27,9.24]
[1725935590129,3.3759,133.29,133.26,7.18392019]
[1725935590341,3.3759,133.29,133.26,13.04732019]
[1725935591331,22.52,133.31,133.28,9.24]
[1725935591531,22.52,133.31,133.29,9.24]
[1725935592431,3.3753,133.32,133.28,12.616]
[1725935592432,22.52,133.3,133.28,12.616]
[1725935592937,25.8956,133.3,133.28,9.24]
[1725935593137,22.52,133.3,133.28,9.24]
[1725935593333,22.52,133.33,133.28,9.24]
[1725935593539,3.3756,133.31,133.28,9.24]
[1725935595139,3.3756,133.31,133.28,12.6161]
[1725935595333,3.3753,133.32,133.28,9.24]
[1725935595636,3.3753,133.32,133.29,3.3758]
[1725935596542,3.3753,133.32,133.28,12.616]
[1725935599239,3.3753,133.32,133.29,3.3758]
[1725935599539,3.3756,133.31,133.28,9.24]
[1725935601236,3.3756,133.31,133.28,12.6161]
[1725935602542,3.3753,133.32,133.29,3.3759]
[1725935602742,22.52,133.33,133.29,9.24]
[1725935603137,1.3758,133.34,133.3,9.24]
[1725935603846,1.3758,133.34,133.32,3.3751]
[1725935604038,3.3746,133.35,133.32,3.3751]
[1725935605533,3.3746,133.35,133.31,3.3753]
[1725935605733,3.3746,133.35,133.31,12.6153]
[1725935606741,22.52,133.36,133.32,3.375]
[1725935606742,3.3742,133.36,133.32,3.375]
[1725935607844,3.3744,133.35,133.32,3.375]
[1725935608238,56.55998109,133.37,133.33,3.3748]
[1725935608439,3.374,133.37,133.33,12.6148]
[1725935610648,3.374,133.37,133.34,3.3745]
[1725935610838,27.303,133.38,133.34,12.6145]
[1725935611439,27.303,133.38,133.35,3.3743]
[1725935611642,22.52,133.38,133.37,9.24]
[1725935611847,22.52,133.41,133.37,9.24]
[1725935612148,225.0,133.46,133.34,1.3862]
[1725935612149,9.24,133.48,133.4,9.24]
[1725935612344,4.83053259,133.47,133.42,9.24]
[1725935612544,1.14064875,133.46,133.42,9.24]
[1725935612744,3.68988384,133.47,133.42,9.24]
[1725935612942,26.20988384,133.47,133.42,9.24]
[1725935613146,56.54702517,133.47,133.42,12.6124]
[1725935613445,22.52,133.45,133.42,9.24]
[1725935614349,2.6547,133.49,133.44,9.24]
[1725935614549,1.14033098,133.48,133.35,2.3021]
[1725935614742,3.3717,133.46,133.43,9.24]
[1725935615654,22.52,133.47,133.44,9.24]
[1725935615952,22.52,133.47,133.45,9.24]
[1725935616848,3.3711,133.48,133.45,9.24]
[1725935617057,3.3713,133.47,133.43,3.3721]
[1725935617247,1.2864,133.49,133.44,9.24]
[1725935617652,3.3711,133.48,133.44,9.24]
[1725935621050,3.3713,133.47,133.44,9.24]
[1725935624758,3.3716,133.46,133.44,9.24]
[1725935625155,22.52,133.53,133.45,9.24]
[1725935625360,22.52,133.53,133.49,9.24]
[1725935625554,3.3705,133.51,133.49,9.24]
[1725935626863,3.3702,133.52,133.49,9.24]
[1725935630267,22.52,133.61,133.51,9.24]
[1725935630466,22.52,133.57,133.5,3.69566846]
[1725935630668,26.20967326,133.57,133.52,9.24]
[1725935631062,3.3693,133.56,133.52,12.61]
[1725935631360,22.52,133.57,133.52,9.24]
[1725935631758,22.52,133.57,133.54,9.24]
[1725935632768,22.52,133.57,133.52,12.61]
[1725935633162,3.3692,133.56,133.52,12.61]
[1725935633566,495.0,133.71,133.54,9.24]
[1725935633768,3.368,133.61,133.58,9.24]
[1725935634073,7.82053227,133.7,133.6,9.24]
[1725935634369,9.24,133.64,133.58,9.24]
[1725935634569,3.9458,133.63,133.58,9.24]
[1725935634870,22.52,133.62,133.59,9.24]
[1725935635668,25.8876,133.62,133.59,9.24]
[1725935636479,22.52,133.62,133.59,9.24]
[1725935638470,3.3676,133.62,133.59,9.24]
[1725935640270,25.1781,133.63,133.54,5.64201618]
[1725935640472,22.52,133.61,133.56,9.24]
[1725935640675,22.52,133.61,133.58,9.24]
[1725935640976,25.8878,133.61,133.58,9.24]
[1725935641168,22.52,133.61,133.59,9.24]
[1725935641374,22.52,133.62,133.59,9.24]
[1725935641877,22.52,133.62,133.55,3.83388256]
[1725935642075,22.52,133.62,133.59,9.24]
[1725935642277,25.8876,133.62,133.59,9.24]
[1725935642469,22.52,133.62,133.59,9.24]
[1725935645680,22.52,133.62,133.53,1.3532]
[1725935645881,22.52,133.62,133.57,9.24]
[1725935646377,3.3679,133.61,133.57,9.24]
[1725935648778,3.3681,133.6,133.57,9.24]
[1725935649182,3.3679,133.61,133.57,12.6087]
[1725935649584,3.3679,133.61,133.57,9.24]
[1725935650781,22.52,133.62,133.53,5.02653891]
[1725935651085,22.52,133.62,133.56,9.24]
[1725935651282,3.3682,133.6,133.56,9.24]
[1725935651781,3.3685,133.59,133.56,9.24]
[1725935652283,3.3682,133.6,133.56,9.24]
[1725935653383,3.3682,133.6,133.58,9.24]
[1725935654378,3.3679,133.61,133.58,9.24]
[1725935654686,22.52,133.62,133.58,9.24]
[1725935655481,22.52,133.62,133.56,3.369]
[1725935655482,3.3678,133.61,133.56,3.369]
[1725935655788,22.52,133.62,133.57,9.24]
[1725935656179,3.3679,133.61,133.57,9.24]
[1725935656584,22.52,133.62,133.6,9.24]
[1725935657179,25.8876,133.62,133.57,3.3687]
[1725935657377,25.8876,133.62,133.6,9.24]
[1725935657579,23.8127,133.63,133.6,9.24]
[1725935657781,23.8127,133.63,133.58,3.3685]
[1725935657981,23.8127,133.63,133.6,9.24]
[1725935658686,27.1801,133.63,133.6,9.24]
[1725935659074,23.8127,133.63,133.6,9.24]
[1725935659784,3.3678,133.61,133.58,9.24]
[1725935660583,33.0527,133.63,133.58,9.24]
[1725935660584,3.3676,133.62,133.58,9.24]
[1725935661182,3.3676,133.62,133.59,9.24]
[1725935661586,3.3676,133.62,133.58,9.24]
[1725935661889,23.8127,133.63,133.57,3.3687]
[1725935661890,33.0527,133.63,133.57,9.24]
[1725935662093,33.0527,133.63,133.53,5.02653891]
[1725935662389,33.0527,133.63,133.57,9.24]
[1725935662780,33.0527,133.63,133.58,9.24]
[1725935663481,3.368,133.61,133.58,9.24]
[1725935664583,3.3681,133.6,133.58,9.24]
[1725935664783,3.3681,133.6,133.57,9.24]
[1725935665289,22.52,133.6,133.53,5.02653891]
[1725935665481,22.52,133.6,133.56,9.24]
[1725935665985,3.3683,133.59,133.56,9.24]
[1725935669986,3.3683,133.59,133.57,9.24]
[1725935670181,33.0527,133.63,133.57,9.24]
[1725935670987,23.8127,133.63,133.57,9.24]
[1725935671385,3.368,133.61,133.57,9.24]
[1725935672194,3.368,133.6,133.57,9.24]
[1725935674089,3.3677,133.62,133.59,9.24]
[1725935675101,3.3679,133.61,133.59,9.24]
[1725935675795,3.3677,133.62,133.59,9.24]
[1725935679905,22.52,133.6,133.57,9.24]
[1725935680306,22.52,133.6,133.57,12.6087]
[1725935680996,3.3679,133.61,133.57,12.6087]